fUST/lending_fUST_20250810
["ID","MTS","AMOUNT","RATE_DAILY","PERIOD"]
[378187242,1754773895342,194.29625174,0.00021414,2]
[378187243,1754773913510,784.17436782,0.000222,69]
[378187244,1754773918545,784.17436779,0.00023915,76]
[378187245,1754773923517,784.17436779,0.00026416,87]
[378187246,1754774036587,6096.71548028,0.000199,2]
[378187250,1754774148272,157.610126,0.00020653,2]
[378187251,1754774169279,641.90372023,0.00021415,2]
[378187252,1754774236610,6274.05749799,0.000199,2]
[378187254,1754774377264,561.66575521,0.00021415,2]
[378187255,1754774426546,6433.54623803,0.000199,2]
[378187257,1754774498867,313.66974714,0.000222,69]
[378187258,1754774503861,313.66974711,0.00023912,76]
[378187259,1754774506813,6342.42,0.00021511,2]
[378187260,1754774508881,313.66974711,0.00026412,87]
[378187261,1754774582911,491.4575358,0.00021415,2]
[378187262,1754774619460,6693.97255326,0.000199,2]
[378187263,1754774662633,308.52621004,0.00021412,2]
[378187265,1754774698983,465.18469,0.00013699,2]
[378187266,1754774699201,465.18469,0.00020187,2]
[378187272,1754774790657,430.02534386,0.00021415,2]
[378187273,1754774806978,7325.87021425,0.000199,2]
[378187274,1754774815541,10798.45317248,0.00020551,2]
[378187275,1754774815570,14101.54682752,0.00020551,2]
[378187276,1754774823721,300.0,0.00021511,2]
[378187281,1754774860345,33765.54120289,0.00031513,30]
[378187282,1754774883002,300.0,0.00021511,2]
[378187284,1754774893747,307.2652182,0.00027962,30]
[378187287,1754774917905,246.13672427,0.0002,7]
[378187290,1754774955347,306.0,0.00027962,30]
[378187291,1754774968068,156.83487357,0.000222,69]
[378187292,1754774973070,156.83487355,0.00024746,80]
[378187294,1754774988808,7417.12732439,0.000199,2]
[378187295,1754775003950,1200.0,0.00021511,2]
[378187296,1754775007213,376.27217586,0.00021414,2]
[378187346,1754775032032,-1200.0,0.00021512,2]
[378187348,1754775032042,-300.0,0.00021512,2]
[378187350,1754775032051,-300.0,0.00021512,2]
[378187352,1754775032062,-300.0,0.00021512,2]
[378187354,1754775032071,-300.0,0.00021512,2]
[378187356,1754775032080,-4231.76499305,0.00021513,2]
[378187358,1754775032089,-460.0,0.00021513,2]
[378187360,1754775032099,-460.0,0.00021513,2]
[378187361,1754775032108,-460.0,0.00021513,2]
[378187362,1754775032117,-298.61106372,0.00021513,2]
[378187364,1754775032126,-460.0,0.00021513,2]
[378187366,1754775032135,-460.0,0.00021513,2]
[378187367,1754775032144,-460.0,0.00021513,2]
[378187369,1754775032153,-460.0,0.00021513,2]
[378187371,1754775032163,-460.0,0.00021513,2]
[378187372,1754775032173,-460.0,0.00021513,2]
[378187374,1754775032182,-460.0,0.00021513,2]
[378187376,1754775032191,-460.0,0.00021513,2]
[378187377,1754775032201,-212.48631088,0.00021513,2]
[378187378,1754775032210,-500.0,0.00021513,2]
[378187379,1754775032220,-460.0,0.00021513,2]
[378187380,1754775032229,-460.0,0.00021513,2]
[378187381,1754775032239,-460.0,0.00021513,2]
[378187382,1754775032248,-460.0,0.00021513,2]
[378187383,1754775032258,-460.0,0.00021513,2]
[378187384,1754775032267,-373.74238653,0.00021513,2]
[378187385,1754775036475,-214.66761347,0.00021513,2]
[378187386,1754775036484,-460.0,0.00021513,2]
[378187387,1754775036494,-460.0,0.00021513,2]
[378187388,1754775036504,-460.0,0.00021513,2]
[378187389,1754775036513,-460.0,0.00021513,2]
[378187390,1754775036521,-460.0,0.00021513,2]
[378187391,1754775036531,-460.0,0.00021513,2]
[378187392,1754775036539,-460.0,0.00021513,2]
[378187393,1754775036548,-539.32,0.00021513,2]
[378187394,1754775036558,-460.0,0.00021513,2]
[378187396,1754775036568,-460.0,0.00021513,2]
[378187399,1754775036577,-206.74790849,0.00021513,2]
[378187400,1754775036589,-253.25209151,0.00021513,2]
[378187401,1754775036598,-460.0,0.00021513,2]
[378187403,1754775036607,-460.0,0.00021513,2]
[378187405,1754775036617,-460.0,0.00021513,2]
[378187407,1754775036627,-460.0,0.00021513,2]
[378187408,1754775036640,-460.0,0.00021513,2]
[378187409,1754775036653,-460.0,0.00021513,2]
[378187410,1754775036662,-460.0,0.00021513,2]
[378187411,1754775036672,-460.0,0.00021513,2]
[378187412,1754775036682,-460.0,0.00021513,2]
[378187413,1754775036691,-460.0,0.00021513,2]
[378187414,1754775036700,-460.0,0.00021513,2]
[378187415,1754775036710,-460.0,0.00021513,2]
[378187416,1754775036720,-460.0,0.00021513,2]
[378187417,1754775036729,-460.0,0.00021513,2]
[378187418,1754775036739,-460.0,0.00021513,2]
[378187419,1754775036748,-460.0,0.00021513,2]
[378187420,1754775036759,-460.0,0.00021513,2]
[378187421,1754775036768,-460.0,0.00021513,2]
[378187422,1754775036777,-507.00798158,0.00021513,2]
[378187423,1754775036787,-460.0,0.00021513,2]
[378187424,1754775036796,-460.0,0.00021513,2]
[378187425,1754775036807,-460.0,0.00021513,2]
[378187426,1754775036817,-460.0,0.00021513,2]
[378187427,1754775036826,-460.0,0.00021513,2]
[378187428,1754775036835,-307.73992691,0.00021513,2]
[378187441,1754775037948,-329.57007309,0.00021513,2]
[378187445,1754775037958,-490.85,0.00021513,2]
[378187447,1754775037969,-460.0,0.00021513,2]
[378187449,1754775037978,-460.0,0.00021513,2]
[378187451,1754775037988,-460.0,0.00021513,2]
[378187453,1754775037997,-460.0,0.00021513,2]
[378187455,1754775038007,-462.27760187,0.00021514,2]
[378187457,1754775038016,-460.0,0.00021514,2]
[378187458,1754775038025,-460.0,0.00021514,2]
[378187460,1754775038035,-460.0,0.00021514,2]
[378187461,1754775038044,-460.0,0.00021514,2]
[378187462,1754775038054,-460.0,0.00021514,2]
[378187463,1754775038063,-460.0,0.00021514,2]
[378187464,1754775038072,-460.0,0.00021514,2]
[378187465,1754775038082,-460.0,0.00021514,2]
[378187466,1754775038091,-460.0,0.00021514,2]
[378187467,1754775038100,-460.0,0.00021515,2]
[378187468,1754775038110,-461.84235612,0.00021515,2]
[378187469,1754775038119,-460.0,0.00021515,2]
[378187470,1754775038129,-460.0,0.00021515,2]
[378187471,1754775038138,-460.0,0.00021515,2]
[378187472,1754775038148,-460.0,0.00021515,2]
[378187473,1754775038157,-460.0,0.00021515,2]
[378187474,1754775038168,-460.0,0.00021515,2]
[378187475,1754775038177,-460.0,0.00021515,2]
[378187476,1754775038186,-460.0,0.00021515,2]
[378187477,1754775038196,-460.0,0.00021515,2]
[378187478,1754775038205,-460.0,0.00021515,2]
[378187479,1754775038214,-460.0,0.00021515,2]
[378187480,1754775038224,-460.0,0.00021515,2]
[378187481,1754775038233,-460.0,0.00021515,2]
[378187482,1754775038242,-184.2346234,0.00021515,2]
[378187483,1754775038252,-460.0,0.00021515,2]
[378187484,1754775038261,-520.06933314,0.00021557,2]
[378187485,1754775038270,-500.0,0.00021573,2]
[378187486,1754775038279,-529.21,0.00021654,2]
[378187487,1754775038290,-7417.12732435,0.00021655,2]
[378187488,1754775038300,-460.0,0.00021787,2]
[378187489,1754775038309,-460.0,0.00021787,2]
[378187490,1754775038318,-460.0,0.00021787,2]
[378187491,1754775038327,-460.0,0.00021787,2]
[378187492,1754775038337,-507.94,0.00021787,2]
[378187493,1754775038346,-460.0,0.00021787,2]
[378187494,1754775038355,-460.0,0.00021787,2]
[378187495,1754775038365,-460.0,0.00021787,2]
[378187496,1754775038374,-256.41275393,0.00021787,2]
[378187497,1754775038383,-460.0,0.00021787,2]
[378187498,1754775038392,-460.0,0.00021787,2]
[378187499,1754775038402,-460.0,0.00021787,2]
[378187500,1754775038411,-460.0,0.00021787,2]
[378187501,1754775038421,-460.0,0.00021787,2]
[378187502,1754775038430,-460.0,0.00021787,2]
[378187503,1754775038440,-460.0,0.00021787,2]
[378187504,1754775038449,-460.0,0.00021787,2]
[378187505,1754775038458,-460.0,0.00021787,2]
[378187506,1754775038467,-460.0,0.00021787,2]
[378187507,1754775038476,-460.0,0.00021787,2]
[378187508,1754775038486,-460.0,0.00021787,2]
[378187509,1754775038495,-460.0,0.00021787,2]
[378187510,1754775038504,-460.0,0.00021787,2]
[378187511,1754775038514,-460.0,0.00021787,2]
[378187512,1754775038523,-226.36770675,0.00021787,2]
[378187513,1754775038532,-460.0,0.00021787,2]
[378187514,1754775038542,-460.0,0.00021787,2]
[378187515,1754775038551,-637.31,0.00021787,2]
[378187516,1754775038560,-460.0,0.00021787,2]
[378187517,1754775038569,-460.0,0.00021787,2]
[378187518,1754775038579,-460.0,0.00021788,2]
[378187519,1754775038588,-460.0,0.00021788,2]
[378187520,1754775038597,-460.0,0.00021788,2]
[378187521,1754775038607,-591.30571313,0.00021788,2]
[378187522,1754775038616,-410.37683111,0.00021788,2]
[378187523,1754775038625,-460.0,0.00021788,2]
[378187524,1754775038634,-200.0,0.00021941,15]
[378187525,1754775038644,-200.0,0.00021941,15]
[378187526,1754775038653,-200.0,0.00021941,15]
[378187527,1754775038662,-200.0,0.00021941,15]
[378187528,1754775038672,-200.0,0.00021941,15]
[378187529,1754775038683,-416.9,0.00022,2]
[378187530,1754775038693,-193.37,0.00022,2]
[378187531,1754775038703,-168.0,0.00022,2]
[378187532,1754775038712,-167.0,0.00022055,6]
[378187533,1754775038721,-460.0,0.00022061,2]
[378187534,1754775038731,-289.27,0.00022061,2]
[378187535,1754775038742,-460.0,0.00022061,2]
[378187536,1754775038761,-460.0,0.00022061,2]
[378187537,1754775038784,-288.1,0.00022061,2]
[378187538,1754775038794,-460.0,0.00022061,2]
[378187539,1754775038804,-460.0,0.00022061,2]
[378187540,1754775038814,-460.0,0.00022061,2]
[378187541,1754775038824,-186.26,0.00022061,2]
[378187542,1754775038834,-460.0,0.00022061,2]
[378187543,1754775038843,-460.0,0.00022061,2]
[378187544,1754775038852,-190.44101548,0.00022061,2]
[378187545,1754775038862,-258.66,0.00022061,2]
[378187546,1754775038871,-460.0,0.00022061,2]
[378187547,1754775038880,-460.0,0.00022061,2]
[378187548,1754775038890,-460.0,0.00022061,2]
[378187549,1754775038899,-181.12,0.00022061,2]
[378187550,1754775038908,-460.0,0.00022061,2]
[378187551,1754775038917,-460.0,0.00022061,2]
[378187552,1754775038927,-460.0,0.00022061,2]
[378187553,1754775038936,-460.0,0.00022061,2]
[378187554,1754775038945,-460.0,0.00022061,2]
[378187555,1754775038954,-637.31,0.00022061,2]
[378187556,1754775038964,-460.0,0.00022061,2]
[378187557,1754775038974,-460.0,0.00022062,2]
[378187558,1754775038983,-460.0,0.00022062,2]
[378187559,1754775038992,-1000.0,0.00022121,2]
[378187560,1754775039001,-288.56996129,0.00022132,2]
[378187561,1754775039011,-500.0,0.00022158,2]
[378187562,1754775039021,-460.0,0.00022335,2]
[378187563,1754775039030,-460.0,0.00022335,2]
[378187564,1754775039040,-460.0,0.00022335,2]
[378187565,1754775039050,-151.02,0.00022335,2]
[378187566,1754775039060,-440.14,0.00022335,2]
[378187567,1754775039069,-460.0,0.00022335,2]
[378187568,1754775039079,-460.0,0.00022335,2]
[378187569,1754775039089,-460.0,0.00022335,2]
[378187570,1754775039099,-460.0,0.00022335,2]
[378187571,1754775039116,-461.56,0.00022335,2]
[378187572,1754775039127,-460.0,0.00022335,2]
[378187573,1754775039140,-460.0,0.00022335,2]
[378187574,1754775039160,-460.0,0.00022335,2]
[378187575,1754775039177,-460.0,0.00022335,2]
[378187576,1754775039187,-637.31,0.00022335,2]
[378187577,1754775039196,-589.46,0.00022335,2]
[378187578,1754775039206,-460.0,0.00022336,2]
[378187579,1754775039215,-460.0,0.00022336,2]
[378187580,1754775039225,-244.29,0.00022535,10]
[378187581,1754775039234,-231.92402426,0.00022545,2]
[378187582,1754775039244,-461.55179734,0.00022545,2]
[378187583,1754775039254,-527.77735381,0.00022545,2]
[378187584,1754775039264,-215.40758176,0.00022545,2]
[378187585,1754775039273,-160.0,0.00022545,2]
[378187586,1754775039283,-160.0,0.00022545,2]
[378187587,1754775039296,-160.0,0.00022545,2]
[378187588,1754775039306,-216.61183532,0.00022545,2]
[378187589,1754775039315,-12666.14847857,0.00022545,2]
[378187590,1754775039325,-312.16666667,0.00022545,2]
[378187591,1754775039336,-842.95011917,0.00022545,2]
[378187592,1754775039345,-160.0,0.00022548,2]
[378187593,1754775039354,-160.0,0.00022548,2]
[378187594,1754775039364,-1376.68,0.0002258,2]
[378187595,1754775039373,-203.58,0.00022599,10]
[378187596,1754775039382,-460.0,0.00022609,2]
[378187597,1754775039392,-460.0,0.00022609,2]
[378187598,1754775039401,-460.0,0.00022609,2]
[378187599,1754775039410,-460.0,0.00022609,2]
[378187600,1754775039420,-398.67150587,0.00022609,2]
[378187601,1754775039429,-460.0,0.00022609,2]
[378187602,1754775039439,-522.6,0.00022609,2]
[378187603,1754775039448,-460.0,0.00022609,2]
[378187604,1754775039458,-460.0,0.00022609,2]
[378187605,1754775039467,-460.0,0.00022609,2]
[378187607,1754775039477,-637.31,0.00022609,2]
[378187608,1754775039487,-460.0,0.0002261,2]
[378187610,1754775039496,-460.0,0.0002261,2]
[378187611,1754775039506,-1520.49321637,0.00022668,2]
[378187612,1754775039515,-500.0,0.00022692,2]
[378187613,1754775039526,-376.27217581,0.00022843,2]
[378187614,1754775039537,-460.0,0.00022883,2]
[378187615,1754775039547,-460.0,0.00022883,2]
[378187616,1754775039556,-460.0,0.00022883,2]
[378187617,1754775039566,-460.0,0.00022883,2]
[378187619,1754775039575,-460.0,0.00022883,2]
[378187620,1754775039586,-460.0,0.00022883,2]
[378187621,1754775039596,-460.0,0.00022883,2]
[378187622,1754775039605,-637.31,0.00022883,2]
[378187623,1754775039614,-460.0,0.00022884,2]
[378187624,1754775039623,-460.0,0.00022884,2]
[378187625,1754775039633,-160.0,0.00023,2]
[378187626,1754775039642,-168.0,0.00023014,7]
[378187627,1754775039653,-460.0,0.00023157,2]
[378187628,1754775039662,-460.0,0.00023157,2]
[378187629,1754775039671,-460.0,0.00023157,2]
[378187630,1754775039681,-460.0,0.00023157,2]
[378187632,1754775039690,-460.0,0.00023157,2]
[378187633,1754775039700,-460.0,0.00023157,2]
[378187634,1754775039712,-460.0,0.00023157,2]
[378187635,1754775039721,-637.31,0.00023157,2]
[378187636,1754775039730,-460.0,0.00023158,2]
[378187637,1754775039740,-460.0,0.00023158,2]
[378187638,1754775039750,-416.9,0.00023189,2]
[378187639,1754775039759,-151.0,0.00023293,2]
[378187640,1754775039768,-151.0,0.00023293,2]
[378187641,1754775039777,-151.0,0.00023293,2]
[378187642,1754775039787,-151.0,0.00023293,2]
[378187643,1754775039796,-151.0,0.00023293,2]
[378187645,1754775039807,-151.0,0.00023293,2]
[378187647,1754775039816,-151.0,0.00023293,2]
[378187649,1754775039826,-151.0,0.00023293,2]
[378187651,1754775039835,-1680.0,0.00023388,2]
[378187652,1754775039845,-420.0,0.00023388,2]
[378187653,1754775039854,-420.0,0.00023388,2]
[378187654,1754775039864,-420.0,0.00023388,2]
[378187655,1754775039873,-160.0,0.000234,2]
[378187656,1754775039882,-7417.12732435,0.00023409,2]
[378187657,1754775039891,-299.95003864,0.0002343,2]
[378187658,1754775039901,-500.0,0.0002343,2]
[378187659,1754775039910,-564.50096889,0.0002343,2]
[378187660,1754775039920,-460.0,0.00023431,2]
[378187661,1754775039929,-460.0,0.00023431,2]
[378187662,1754775039939,-460.0,0.00023431,2]
[378187663,1754775039948,-460.0,0.00023431,2]
[378187664,1754775039957,-460.0,0.00023431,2]
[378187665,1754775039967,-460.0,0.00023431,2]
[378187666,1754775039976,-460.0,0.00023431,2]
[378187667,1754775039986,-637.31,0.00023431,2]
[378187668,1754775039995,-460.0,0.00023432,2]
[378187669,1754775040005,-460.0,0.00023432,2]
[378187670,1754775040015,-276.61,0.00023489,3]
[378187671,1754775040024,-1680.0,0.00023497,2]
[378187672,1754775040033,-150.88,0.00023695,3]
[378187673,1754775040043,-829.87,0.00023695,3]
[378187674,1754775040052,-460.0,0.00023705,2]
[378187675,1754775040061,-460.0,0.00023705,2]
[378187676,1754775040071,-460.0,0.00023705,2]
[378187677,1754775040080,-460.0,0.00023705,2]
[378187678,1754775040090,-460.0,0.00023705,2]
[378187679,1754775040099,-460.0,0.00023705,2]
[378187680,1754775040108,-460.0,0.00023705,2]
[378187681,1754775040119,-637.31,0.00023705,2]
[378187682,1754775040129,-460.0,0.00023706,2]
[378187683,1754775040139,-460.0,0.00023706,2]
[378187684,1754775040148,-500.0,0.00023886,2]
[378187685,1754775040158,-260.0,0.00023948,2]
[378187686,1754775040167,-460.0,0.00023979,2]
[378187687,1754775040177,-460.0,0.00023979,2]
[378187688,1754775040187,-460.0,0.00023979,2]
[378187689,1754775040196,-460.0,0.00023979,2]
[378187690,1754775040206,-460.0,0.00023979,2]
[378187691,1754775040215,-460.0,0.00023979,2]
[378187692,1754775040224,-460.0,0.00023979,2]
[378187693,1754775040233,-637.31,0.00023979,2]
[378187694,1754775040243,-460.0,0.0002398,2]
[378187695,1754775040253,-460.0,0.0002398,2]
[378187696,1754775040262,-200.0,0.00024082,15]
[378187697,1754775040272,-200.0,0.00024082,15]
[378187698,1754775040282,-200.0,0.00024082,15]
[378187699,1754775040293,-200.0,0.00024082,15]
[378187700,1754775040304,-200.0,0.00024082,15]
[378187701,1754775040313,-200.0,0.00024082,15]
[378187702,1754775040322,-200.0,0.00024082,15]
[378187703,1754775040331,-603.53,0.00024154,3]
[378187704,1754775040341,-5000.0,0.00024164,2]
[378187705,1754775040350,-170.0,0.00024164,7]
[378187706,1754775040360,-460.0,0.00024253,2]
[378187707,1754775040369,-460.0,0.00024253,2]
[378187708,1754775040379,-460.0,0.00024253,2]
[378187709,1754775040388,-376.74149105,0.00024253,2]
[378187710,1754775040397,-460.0,0.00024253,2]
[378187711,1754775040417,-460.0,0.00024253,2]
[378187712,1754775040426,-460.0,0.00024253,2]
[378187713,1754775040435,-637.31,0.00024253,2]
[378187714,1754775040445,-460.0,0.00024254,2]
[378187715,1754775040454,-460.0,0.00024254,2]
[378187716,1754775040464,-376.27217581,0.00024271,2]
[378187717,1754775040473,-416.9,0.00024379,2]
[378187718,1754775040482,-168.0,0.0002447,2]
[378187719,1754775040491,-360.0,0.00024496,2]
[378187720,1754775040501,-431.1578537,0.0002451,2]
[378187721,1754775040510,-431.1578537,0.0002451,2]
[378187722,1754775040519,-431.1578537,0.0002451,2]
[378187723,1754775040528,-431.1578537,0.0002451,2]
[378187724,1754775040537,-439.9715106,0.0002451,2]
[378187725,1754775040546,-431.1578537,0.0002451,2]
[378187726,1754775040556,-431.1578537,0.0002451,2]
[378187727,1754775040564,-321.5381403,0.0002451,2]
[378187728,1754775040574,-460.0,0.00024527,2]
[378187729,1754775040583,-460.0,0.00024527,2]
[378187730,1754775040592,-460.0,0.00024527,2]
[378187731,1754775040602,-460.0,0.00024527,2]
[378187732,1754775040612,-460.0,0.00024527,2]
[378187733,1754775040621,-460.0,0.00024527,2]
[378187734,1754775040630,-637.31,0.00024527,2]
[378187735,1754775040640,-166.0,0.00024528,3]
[378187736,1754775040649,-166.0,0.00024528,3]
[378187737,1754775040659,-166.0,0.00024528,3]
[378187738,1754775040669,-173.0,0.00024528,3]
[378187739,1754775040678,-167.00063462,0.00024528,3]
[378187740,1754775040688,-175.29485704,0.00024528,3]
[378187741,1754775040698,-166.0,0.00024528,3]
[378187742,1754775040708,-173.0,0.00024528,3]
[378187743,1754775040717,-166.0,0.00024528,3]
[378187744,1754775040727,-1759.0,0.00024528,3]
[378187745,1754775040736,-1759.0,0.00024528,3]
[378187746,1754775040745,-1759.0,0.00024528,3]
[378187747,1754775040755,-1759.0,0.00024528,3]
[378187748,1754775040764,-1759.0,0.00024528,3]
[378187749,1754775040773,-1759.0,0.00024528,3]
[378187750,1754775040782,-1759.0,0.00024528,3]
[378187751,1754775040791,-325.0,0.00024528,3]
[378187752,1754775040800,-325.0,0.00024528,3]
[378187753,1754775040809,-325.0,0.00024528,3]
[378187754,1754775040819,-325.0,0.00024528,3]
[378187755,1754775040827,-325.0,0.00024528,3]
[378187756,1754775040835,-325.0,0.00024528,3]
[378187757,1754775040843,-325.0,0.00024528,3]
[378187758,1754775040852,-325.0,0.00024528,3]
[378187759,1754775040861,-325.0,0.00024528,3]
[378187760,1754775040870,-325.0,0.00024528,3]
[378187761,1754775040879,-325.0,0.00024528,3]
[378187762,1754775040888,-325.0,0.00024528,3]
[378187763,1754775040898,-325.0,0.00024528,3]
[378187764,1754775040907,-325.0,0.00024528,3]
[378187765,1754775040917,-325.0,0.00024528,3]
[378187766,1754775040927,-325.0,0.00024528,3]
[378187767,1754775040936,-325.0,0.00024528,3]
[378187768,1754775040945,-325.0,0.00024528,3]
[378187769,1754775040955,-325.0,0.00024528,3]
[378187770,1754775040964,-325.0,0.00024528,3]
[378187771,1754775040973,-325.0,0.00024528,3]
[378187772,1754775040983,-325.0,0.00024528,3]
[378187773,1754775040992,-325.0,0.00024528,3]
[378187774,1754775041002,-325.0,0.00024528,3]
[378187775,1754775041011,-325.0,0.00024528,3]
[378187776,1754775041021,-325.0,0.00024528,3]
[378187777,1754775041032,-325.0,0.00024528,3]
[378187778,1754775041041,-325.0,0.00024528,3]
[378187779,1754775041052,-231.12307377,0.00024528,3]
[378187780,1754775041062,-325.0,0.00024528,3]
[378187781,1754775041186,-371.04001954,0.00024528,3]
[378187782,1754775041217,-325.0,0.00024528,3]
[378187783,1754775041226,-325.0,0.00024528,3]
[378187784,1754775041235,-325.0,0.00024528,3]
[378187785,1754775041245,-325.0,0.00024528,3]
[378187786,1754775041256,-325.0,0.00024528,3]
[378187787,1754775041266,-325.0,0.00024528,3]
[378187788,1754775041275,-325.0,0.00024528,3]
[378187789,1754775041285,-12666.14847857,0.00024528,3]
[378187790,1754775041299,-160.0,0.00024528,3]
[378187791,1754775041308,-160.0,0.00024528,3]
[378187792,1754775041318,-231.92402426,0.00024528,3]
[378187793,1754775041327,-461.55179734,0.00024528,3]
[378187794,1754775041337,-160.0,0.00024528,3]
[378187795,1754775041347,-312.16666667,0.00024528,3]
[378187796,1754775041357,-396.09967546,0.00024528,2]
[378187797,1754775041367,-216.61183532,0.00024528,3]
[378187798,1754775041377,-215.40758176,0.00024528,3]
[378187799,1754775041387,-460.0,0.00024528,2]
[378187800,1754775041397,-842.95011917,0.00024528,3]
[378187801,1754775041406,-527.77735381,0.00024528,3]
[378187802,1754775041416,-151.0,0.000246,6]
[378187803,1754775041427,-971.0,0.00024658,2]
[378187804,1754775041440,-2150.0,0.00024658,2]
[378187805,1754775041450,-636.0,0.00024658,2]
[378187806,1754775041459,-408.0,0.00024658,2]
[378187807,1754775041468,-415.728,0.00024658,2]
[378187808,1754775041478,-634.47631651,0.00024701,2]
[378187809,1754775041487,-634.4763165,0.00024751,2]
[378187810,1754775041497,-586.40459032,0.000248,2]
[378187811,1754775041507,-634.4763165,0.00024801,2]
[378187812,1754775041517,-460.0,0.00024801,2]
[378187813,1754775041527,-460.0,0.00024801,2]
[378187814,1754775041536,-460.0,0.00024801,2]
[378187815,1754775041545,-460.0,0.00024801,2]
[378187816,1754775041554,-460.0,0.00024801,2]
[378187817,1754775041564,-460.0,0.00024801,2]
[378187818,1754775041573,-637.31,0.00024801,2]
[378187819,1754775041583,-460.0,0.00024802,2]
[378187820,1754775041592,-634.4763165,0.0002485,2]
[378187821,1754775041601,-553.22,0.00024859,3]
[378187822,1754775041611,-615.51237071,0.00024873,2]
[378187823,1754775041620,-500.0,0.00024873,2]
[378187824,1754775041630,-500.0,0.00024873,2]
[378187825,1754775041639,-500.0,0.00024873,2]
[378187826,1754775041650,-500.0,0.00024873,2]
[378187827,1754775041659,-172.77642099,0.00024873,2]
[378187828,1754775041668,-152.57967547,0.00024873,2]
[378187829,1754775041678,-293.20229516,0.00024889,2]
[378187830,1754775041687,-460.0,0.00024899,2]
[378187831,1754775041696,-272.49132591,0.00024899,2]
[378187832,1754775041705,-772.29664783,0.00024899,2]
[378187833,1754775041715,-772.29664783,0.00024899,2]
[378187834,1754775041724,-772.29664783,0.00024899,2]
[378187835,1754775041734,-772.29664783,0.00024899,2]
[378187836,1754775041743,-772.29664783,0.00024899,2]
[378187837,1754775041753,-772.29664783,0.00024899,2]
[378187838,1754775041762,-772.29664783,0.00024899,2]
[378187839,1754775041772,-772.29664783,0.00024899,2]
[378187840,1754775041781,-772.29664783,0.00024899,2]
[378187841,1754775041790,-772.29664783,0.00024899,2]
[378187842,1754775041800,-772.29664783,0.00024899,2]
[378187843,1754775041810,-772.29664783,0.00024899,2]
[378187844,1754775041819,-772.29664783,0.00024899,2]
[378187845,1754775041828,-772.29664783,0.00024899,2]
[378187846,1754775041837,-801.96552199,0.00024899,2]
[378187847,1754775041847,-801.96552199,0.00024899,2]
[378187848,1754775041856,-801.96552199,0.00024899,2]
[378187849,1754775041866,-801.96552199,0.00024899,2]
[378187850,1754775041875,-801.96552199,0.00024899,2]
[378187851,1754775041885,-801.96552199,0.00024899,2]
[378187852,1754775041894,-801.96552199,0.00024899,2]
[378187853,1754775041903,-801.96552199,0.00024899,2]
[378187854,1754775041912,-801.96552199,0.00024899,2]
[378187855,1754775041922,-460.0,0.00024899,2]
[378187856,1754775041932,-958.91656662,0.00024899,2]
[378187857,1754775041942,-958.91656662,0.00024899,2]
[378187858,1754775041951,-460.0,0.00024899,2]
[378187859,1754775041961,-254.68682527,0.00024899,2]
[378187860,1754775041970,-371.43192655,0.00024899,2]